[Event "US Masters 2024"]
[Site "Charlotte"]
[Date "2024.11.29"]
[Round "4.11"]
[White "Bortnyk, Olexandr"]
[Black "Heimann, Mark"]
[Result "0-1"]
[ECO "B40"]
[WhiteElo "2603"]
[BlackElo "2459"]
[Annotator "TA"]
[PlyCount "106"]
[EventDate "2024.09.23"]
[EventType "swiss"]
[EventCountry "USA"]
[SourceTitle "playchess.com"]
[Source "ChessBase"]
[SourceQuality "1"]
[TimeControl "5400+30"]

{[%evp 52,106,-189,-189,-191,-195,-197,-194,-195,-201,-201,-211,-189,-224,-247,-302,-291,-262,-179,-291,-270,-362,-331,-378,-352,-387,-325,-330,-307,-465,-494,-751,-741,-29972,-649,-584,-491,-494,-453,-539,-531,-438,0,-895,-876,-1026,-921,-1137,-1059,-29983,-29984,-29984,-29985,-29985,-29986,-29988,-29989]} 1. e4 {[%emt 0:00:04]} c5 {[%emt 0:01:25]} 2. Nf3 {[%emt 0:02:30]} e6 {[%emt 0:00:09]} 3. Nc3 {[%emt 0:00:29]} Nc6 {[%emt 0:00:05]} 4. g3 {[%emt 0:00:05]} Qb6 {[%emt 0:01:00]} 5. Bg2 {[%emt 0:01:00]} d6 {[%emt 0:00:40]} 6. d3 {[%emt 0:00:38] B40: Sicilian: 2...e6, Unusual lines.} Nf6 {[%emt 0:03:15]} 7. O-O {[%emt 0:01:22]} Be7 {[%emt 0:00:13]} 8. Kh1 {[%emt 0:03:51]} Rb8 $146 {[%emt 0:08:01]} ({Predecessor:} 8... O-O 9. Nh4 e5 10. h3 Be6 11. f4 exf4 12. Nd5 Bxd5 13. exd5 Ne5 14. Nf5 Bd8 15. Bxf4 {1-0 Fiala,L (1603)-Modrzejewski,T (1551) Lublin Zukertort Memorial 5th 2013 (7)}) 9. Nd2 {[%emt 0:05:12]} h5 {[%emt 0:03:29]} 10. h3 {[%emt 0:01:48]} Qc7 {[%emt 0:01:13]} 11. f4 {[%emt 0:02:10]} b5 {[%emt 0:00:26]} 12. a4 {[%emt 0:04:14]} b4 {[%emt 0:04:56]} 13. Nb5 {[%emt 0:00:40]} Qd7 {[%emt 0:02:03]} 14. e5 {[%emt 0:00:16]} dxe5 {[%emt 0:00:57]} 15. Nc4 {[%emt 0:00:03]} a6 {[%emt 0:04:29]} 16. fxe5 {[%emt 0:00:28]} axb5 {[%emt 0:00:05]} 17. axb5 {[%emt 0:00:50]} Rxb5 {[%emt 0:01:42]} 18. exf6 {[%emt 0:00:17]} gxf6 {[%emt 0:07:44]} 19. Ra8 {[%emt 0:00:10]} Kf8 {[%emt 0:03:57]} 20. Bg5 {[%emt 0:08:03]} f5 {[%emt 0:12:24]} 21. Bxc6 {[%emt 0:17:31]} Qxc6+ {[%emt 0:00:19]} 22. Qf3 {[%emt 0:00:01]} Qd7 {[%emt 0:09:04]} 23. Ne5 {[%emt 0:34:18]} Qc7 {[%emt 0:00:22]} 24. Rfa1 {[%emt 0:08:40]} Kg7 {[%emt 0:03:06]} 25. Rxc8 {[%emt 0:00:16]} Rxc8 {[%emt 0:01:26]} 26. Qxh5 {[%emt 0:00:04]} Qxe5 {[%emt 0:02:52]} 27. Bxe7 {[%emt 0:00:43]} Kg8 $1 {[%emt 0:05:14]} (27... Qxb2 28. Qg5+ Kh7 29. Bf6 $18) (27... Qxg3 $2 28. Rg1 $18) 28. Qh4 {[%emt 0:03:07] [#]} Qh8 $1 {[%emt 0:01:39]} (28... Qxb2 $2 29. Bf6 $18) 29. Qg5+ {[%emt 0:00:03]} Qg7 {[%emt 0:00:03]} 30. Qh4 {[%emt 0:00:03]} Qh7 $1 {[%emt 0:00:10]} (30... Qxb2 $2 31. Bf6 $18) 31. Qg5+ {[%emt 0:00:27]} Qg6 {[%emt 0:00:04]} 32. Qh4 {[%emt 0:02:08] [#]} Kg7 $1 {[%emt 0:00:46]} 33. Bd6 {[%emt 0:00:30]} Rb7 {[%emt 0:02:14]} 34. Kg2 {[%emt 0:01:07]} Qh6 {[%emt 0:06:21]} 35. Qc4 {[%emt 0:00:05]} (35. Be5+ {was necessary.} Kh7 36. Qc4) 35... Qe3 $19 {[%emt 0:01:27]} 36. Qa6 {[%emt 0:01:35]} Qe2+ {[%emt 0:00:26]} 37. Kg1 {[%emt 0:00:04]} Qf3 $1 {[%emt 0:00:29]} 38. Be5+ {[%emt 0:01:26]} Kg6 {[%emt 0:00:50]} 39. Rf1 {[%emt 0:00:52]} Qd5 {[%emt 0:00:43]} 40. Bf4 {[%emt 0:01:16]} (40. b3 $142) 40... c4 $19 {[%emt 0:02:03]} 41. Re1 {[%emt 0:00:31]} (41. Rf2 $142 cxd3 42. cxd3) 41... cxd3 $19 {[%emt 0:00:22]} 42. Re5 {[%emt 0:01:39]} Qc6 {[%emt 0:02:23]} (42... Qd4+ $142 43. Kh1 d2 44. Rxe6+ fxe6 (44... f6 $2 45. Bxd2 Rxc2 46. Rd6 $19) 45. Qxe6+ Qf6 46. Qd5 Rd8 (46... Qxb2 47. Bxd2 Re7 48. Qd6+ Qf6 49. Qxf6+ Kxf6 50. Bxb4 Re2 51. c3 Ke5 52. h4 Ke4 53. h5 Ra8 54. Bc5 Kf3 55. Bg1 Rg2 56. h6 Ra1 57. h7 Raxg1#) 47. Qg8+ Rg7 (47... Rxg8 48. Bxd2 Re7 49. h4 Qc6+ 50. Kg1 Re2 51. h5+ Kf7 52. Bxb4 Qg2#) 48. Qd5 Rxd5 (48... d1=Q+ 49. Qxd1 Rxd1+ 50. Kg2 Qc6+ 51. Kf2 Qxc2+ 52. Kf3 Rf1+ 53. Ke3 Qd1 54. h4 Rf3#) 49. Kh2 d1=Q (49... d1=B 50. h4 Qxb2 51. Kg1 Qxc2 52. Be3 Bf3 53. Bd2 Qd1+ 54. Be1 Qxe1+ 55. Kh2 Qh1#) 50. h4 Qe2+ (50... Qxc2+ 51. Kh3 Kf7 52. Bg5) 51. Kh3 Kf7 (51... Qxb2 52. h5+ Kxh5 53. Bh6 Qf1+ 54. Kh2 Qxc2+ 55. Bd2 Rxd2#) 52. Bc1 Qxh4+ 53. gxh4 Qg2#) 43. Qxd3 $19 {[%emt 0:00:24]} Rd7 {[%emt 0:01:15]} 44. Qe2 {[%emt 0:00:07]} Qc4 {[%emt 0:03:42]} ({Don't take} 44... Qxc2 45. Rxe6+ f6 (45... fxe6 46. Qxe6+ Kg7 47. Qxd7+ Kf6 48. Qd6+ Kf7 49. Qd7+ Kf6 50. Qd6+ Kf7 51. Qd5+ Kf6 52. Qd6+ $11) 46. Kf2 Qc5+ 47. Kf1) 45. h4 {[%emt 0:01:08]} Qd4+ {[%emt 0:00:49]} 46. Kh2 {[%emt 0:00:16]} Qc4 $2 {[%emt 0:01:53]} (46... Qxb2 47. Rxe6+ f6 (47... fxe6 48. Qxe6+ Qf6 49. h5+ Kxh5 50. Qxf6 $18) 48. Rc6 $11) ({Black should play} 46... Rd6 $19 47. Qg2 Qxb2) 47. Qf2 $2 {[%emt 0:00:17][%mdl 8192]} (47. Kg1 $11 Qxe2 (47... Qxc2 $2 48. Rxe6+ fxe6 49. Qxe6+ Kh5 50. Qxd7 $19) 48. Rxe2) 47... Qxc2 $19 {[%emt 0:00:19]} 48. Re2 {[%emt 0:00:03]} b3 {[%emt 0:00:38]} 49. Kh3 {[%emt 0:00:42]} Qd1 {[%emt 0:00:46]} 50. g4 {[%emt 0:00:58]} fxg4+ {[%emt 0:00:43]} 51. Kg3 {[%emt 0:00:13]} Rc2 {[%emt 0:01:10]} 52. h5+ {[%emt 0:00:44]} Kh7 {[%emt 0:00:06]} ({Weaker is} 52... Kxh5 53. Qh2+ Kg6 54. Qh6+ Kf5 55. Qg5#) 53. Rxc2 {[%emt 0:00:07]} bxc2 {[%emt 0:00:16]} 0-1

[Event "US Masters 2024"]
[Site "Charlotte"]
[Date "2024.11.29"]
[Round "4.12"]
[White "Rahul Srivatshav P"]
[Black "Antipov, Mikhail Al."]
[Result "0-1"]
[ECO "D46"]
[WhiteElo "2494"]
[BlackElo "2602"]
[Annotator "TA"]
[PlyCount "92"]
[EventDate "2024.09.23"]
[EventType "swiss"]
[EventCountry "USA"]
[SourceTitle "playchess.com"]
[Source "ChessBase"]
[SourceQuality "1"]
[TimeControl "5400+30"]

{[%evp 19,92,0,0,7,10,15,25,13,16,0,0,0,7,0,0,0,0,-13,48,40,41,-13,-5,-20,15,-26,-22,-23,-20,-20,-21,-22,-14,-43,-29,-42,-36,-288,-289,-288,-284,-301,-280,-312,-291,-268,-201,-204,-182,-203,-176,-212,-189,-275,-233,-254,-254,-266,-265,-264,-205,-372,0,-289,-287,-272,-267,-298,-107,-138,-136,-209,-286,-2027,-1928]} 1. d4 {[%emt 0:10:44]} Nf6 {[%emt 0:00:06]} 2. c4 {[%emt 0:00:38]} e6 {[%emt 0:00:06]} 3. Nf3 {[%emt 0:00:39]} d5 {[%emt 0:00:19]} 4. Nc3 {[%emt 0:00:27]} c6 {[%emt 0:00:16]} 5. e3 {[%emt 0:01:21]} Nbd7 {[%emt 0:00:07]} 6. Qc2 {[%emt 0:00:52]} Bd6 {[%emt 0:00:29]} 7. Bd3 {[%emt 0:03:08]} O-O {[%emt 0:01:02]} 8. O-O {[%emt 0:00:25]} dxc4 {[%emt 0:00:25]} 9. Bxc4 {[%emt 0:00:10]} a6 {[%emt 0:00:05]} 10. Rd1 {[%emt 0:10:51]} b5 {[%emt 0:01:36]} 11. Bd3 {[%emt 0:11:56]} Bb7 {[%emt 0:00:33]} 12. Ng5 {[%emt 0:05:46]} h6 {[%emt 0:00:32]} 13. Nge4 {[%emt 0:00:33] White has an edge.} Bb8 {[%emt 0:02:56]} 14. Nc5 {[%emt 0:17:54]} Nxc5 {[%emt 0:00:39]} 15. dxc5 {[%emt 0:00:54][%cal Od3h7]} Qe7 {[%emt 0:02:03]} 16. Ne4 {[%emt 0:01:24]} Nxe4 {[%emt 0:01:36]} 17. Bxe4 {[%emt 0:00:05]} f5 {[%emt 0:00:24]} 18. Bd3 {[%emt 0:01:52]} Bc8 {[%emt 0:12:19]} ({Better is} 18... a5 $11) 19. a4 $14 {[%emt 0:05:23]} b4 {[%emt 0:02:52]} 20. b3 {[%emt 0:00:27]} (20. a5 $14) 20... a5 $1 $11 {[%emt 0:09:02]} 21. Bb2 {[%emt 0:01:08]} Ra7 {[%emt 0:07:04]} 22. Bc4 {[%emt 0:10:46]} Kh8 {[%emt 0:00:46]} 23. g3 {[%emt 0:07:20]} e5 {[%emt 0:01:33]} 24. Rac1 {[%emt 0:00:37]} Rd7 {[%emt 0:06:08]} 25. Rxd7 {[%emt 0:00:56]} Bxd7 {[%emt 0:00:06]} 26. Bf1 {[%emt 0:02:21]} Bc7 {[%emt 0:09:22]} 27. Rd1 {[%emt 0:00:48]} Be6 {[%emt 0:00:51]} 28. Bg2 $2 {[%emt 0:00:05][%mdl 8192]} (28. Bc4 $1 $15) 28... Qf7 $19 {[%emt 0:01:48]} 29. Qe2 {[%emt 0:02:10]} Bxb3 {[%emt 0:06:44]} 30. Ra1 {[%emt 0:00:03]} Bc4 {[%emt 0:02:47]} 31. Qc2 {[%emt 0:00:40]} e4 {[%emt 0:00:52]} 32. Bf1 {[%emt 0:00:04]} Bxf1 {[%emt 0:00:36]} 33. Rxf1 {[%emt 0:00:07]} Qe6 {[%emt 0:03:44]} 34. Rd1 {[%emt 0:02:38]} Rd8 {[%emt 0:00:39]} 35. h4 {[%emt 0:00:42]} Rd5 {[%emt 0:01:24]} 36. h5 {[%emt 0:01:08]} (36. Qb3 $142) 36... Kh7 {[%emt 0:01:22]} 37. Rd4 {[%emt 0:00:54] [#]} Bd8 $1 {[%emt 0:04:35]} 38. Qc4 {[%emt 0:01:02]} Be7 {[%emt 0:09:53]} 39. Rxd5 {[%emt 0:00:30]} Qxd5 {[%emt 0:00:10][%mdl 4096] Endgame. KQB-KQB} 40. Qa6 {[%emt 0:00:25]} (40. Qxd5 cxd5 41. c6) 40... Qxc5 $2 {[%emt 0:02:37]} (40... f4 $19 41. gxf4 Qd1+ (41... Bxc5 42. Qxa5 Qd1+ 43. Kg2 $15) (41... Qxh5 $2 42. Qc8 $19) (41... Qxc5 42. Qb7 $17) 42. Kg2 Bh4 (42... Qxh5 $2 43. Qc8 $19) (42... Bxc5 43. Qxc6 Qf3+ 44. Kg1 $11)) 41. Bd4 {[%emt 0:00:24][%mdl 8192]} (41. Qc8 $11 {and White has nothing to worry.}) 41... Qd5 {[%emt 0:00:55][%cal Of5f4] aiming for ...f4!} 42. Qa7 {[%emt 0:00:29]} Bf8 {[%emt 0:01:10]} 43. Qb7 {[%emt 0:00:16]} Kg8 $2 {[%emt 0:00:53]} (43... f4 $19 {and Black stays clearly on top.} 44. gxf4 Qxh5) 44. Kg2 $17 {[%emt 0:00:13] [#]} Qc4 $1 {[%emt 0:00:29]} 45. Qc8 {[%emt 0:01:14]} (45. Qd7 $17 {was worth a try.}) 45... c5 $19 {[%emt 0:00:19]} 46. Qc7 $2 {[%emt 0:00:20]} (46. Qc6) 46... Qf7 {[%emt 0:00:25] Weighted Error Value: White=0.60/Black=0.24 (precise) .  Loses game:     	White=2     	---        Missed win:     	---       	Black=2      Mistake:       	White=5     	Black=1      Inaccurate:     	White=2     	Black=1      OK:         	White=11    	Black=17     Best:        	White=2     	Black=3      Strong:       	---       	Black=3} 0-1

[Event "US Masters 2024"]
[Site "Charlotte"]
[Date "2024.11.29"]
[Round "4.13"]
[White "Kevlishvili, Robby"]
[Black "Bilych, Oleksii"]
[Result "1/2-1/2"]
[ECO "B22"]
[WhiteElo "2556"]
[BlackElo "2429"]
[Annotator "TA"]
[PlyCount "47"]
[EventDate "2024.09.23"]
[EventType "swiss"]
[EventCountry "USA"]
[SourceTitle "playchess.com"]
[Source "ChessBase"]
[SourceQuality "1"]
[TimeControl "5400+30"]

{[%evp 13,47,4,13,12,21,22,22,17,18,11,5,31,18,18,12,13,45,6,11,0,113,48,63,72,84,50,43,43,49,-5,-3,-1,-5,-4,-8,-40]} 1. e4 {[%emt 0:04:45]} c5 {[%emt 0:00:06]} 2. c3 {[%emt 0:00:07]} d5 {[%emt 0:00:05]} 3. exd5 {[%emt 0:00:05]} Qxd5 {[%emt 0:00:04]} 4. d4 {[%emt 0:00:04]} Nf6 {[%emt 0:00:09]} 5. Nf3 {[%emt 0:00:04]} e6 {[%emt 0:00:06]} 6. Na3 {[%emt 0:00:18][%cal Bb1a3,Ba3c4,Bc4e3,Be3c2,Bc2d4][%mdl 32]} a6 {[%emt 0:00:07]} 7. Nc4 {[%emt 0:00:19]} Nbd7 {[%emt 0:00:05]} 8. Be2 {[%emt 0:00:31]} b5 {[%emt 0:07:02]} 9. Ne3 {[%emt 0:00:13]} Qc6 {[%emt 0:00:03]} 10. a4 {[%emt 0:00:21] And now axb5 would win.} Bb7 {[%emt 0:00:10]} 11. axb5 {[%emt 0:02:00]} axb5 {[%emt 0:00:03]} 12. Rxa8+ {[%emt 0:00:07]} Bxa8 {[%emt 0:00:05]} 13. dxc5 {[%emt 0:00:15]} Qxc5 {[%emt 0:00:31]} 14. Nc2 {[%emt 0:00:14]} Nd5 {[%emt 0:07:27]} 15. Ncd4 {[%emt 0:10:07]} b4 {[%emt 0:01:15]} 16. Bb5 {[%emt 0:02:15]} (16. c4 {simplifies} N5b6 17. O-O Be7 18. b3) 16... bxc3 {[%emt 0:12:36]} (16... Bd6 $11) 17. Ne5 $16 {[%emt 0:29:39]} cxb2 $1 {[%emt 0:03:42]} 18. Bxd7+ {[%emt 0:00:44]} (18. Nxd7 $2 {loses.} Qxc1 (18... bxc1=Q $2 19. Nxc5+ Kd8 20. Qxc1 $18) 19. Nb6+ Kd8 $19) 18... Ke7 {[%emt 0:00:10]} 19. Bxb2 {[%emt 0:19:23]} Qb4+ $1 {[%emt 0:00:04]} 20. Qd2 {[%emt 0:00:26] aiming for Bc6.} f6 $1 {[%emt 0:00:04] [#]} 21. Bxe6 {[%emt 0:13:51]} fxe5 {[%emt 0:01:48] The position is equal.} 22. Bxd5 {[%emt 0:00:27]} Qxd2+ {[%emt 0:00:04]} 23. Kxd2 {[%emt 0:00:04]} Bxd5 {[%emt 0:00:08]} 24. Nf5+ {[%emt 0:04:40] Weighted Error Value: White=0.15 (very precise) /Black=0.13 (very precise) .  Mistake:       	White=1     	Black=1      Inaccurate:     	White=3     	Black=1      OK:         	White=2     	Black=5      Best:        	White=3     	Black=2      Strong:       	---       	Black=3} 1/2-1/2

[Event "US Masters 2024"]
[Site "Charlotte"]
[Date "2024.11.29"]
[Round "4.14"]
[White "Sinha, Sahil"]
[Black "Harsha Bharathakoti"]
[Result "1/2-1/2"]
[ECO "E10"]
[WhiteElo "2346"]
[BlackElo "2531"]
[Annotator "TA"]
[PlyCount "45"]
[EventDate "2024.09.23"]
[EventType "swiss"]
[EventCountry "USA"]
[SourceTitle "playchess.com"]
[Source "ChessBase"]
[SourceQuality "1"]
[TimeControl "5400+30"]

{[%evp 9,45,33,25,35,38,24,17,15,20,25,24,27,27,28,40,36,35,32,34,16,50,39,47,56,55,28,33,21,13,10,17,0,5,5,10,14,60,0]} 1. d4 {[%emt 1:31:00]} Nf6 {[%emt 0:09:32]} 2. c4 {[%emt 0:00:00]} e6 {[%emt 0:00:12]} 3. Nf3 {[%emt 0:00:00]} h6 {[%emt 0:00:06]} 4. Nc3 {[%emt 0:00:00]} Bb4 {[%emt 0:00:58]} 5. Qc2 {[%emt 0:00:00]} c5 {[%emt 0:00:48]} 6. dxc5 {[%emt 0:00:00]} Na6 {[%emt 0:00:04][%cal Bb8a6,Ba6c5,Bc5e4][%mdl 32]} 7. g3 {[%emt 0:00:00]} Nxc5 {[%emt 0:00:30]} 8. Bg2 {[%emt 0:00:00] The position is equal.} Nce4 {[%emt 0:00:55]} 9. O-O {[%emt 0:00:00]} Nxc3 {[%emt 0:00:16]} 10. bxc3 {[%emt 0:00:00]} Bc5 {[%emt 0:00:05]} 11. e4 {[%emt 0:00:00][%cal Be2e4,Be4e5][%mdl 32]} Nh7 {[%emt 0:00:10]} 12. e5 {[%emt 0:00:00]} Rb8 $1 {[%emt 0:02:39]} 13. Nd2 {[%emt 0:00:00]} b6 {[%emt 1:20:45]} 14. Ne4 {[%emt 0:00:00]} Be7 {[%emt 0:00:00]} 15. Rd1 {[%emt 0:00:00]} O-O {[%emt 0:00:00]} 16. Qa4 {[%emt 0:00:00]} Bb7 {[%emt 0:00:00]} 17. Qxa7 {[%emt 0:00:00]} Qc8 {[%emt 0:00:00]} 18. Be3 {[%emt 0:00:00]} (18. Qxb6 $2 {loses.} Bxe4 (18... Qxc4 19. Qd4 $16) 19. Qe3 Bxg2 20. Kxg2 Qxc4 $19) 18... Qxc4 {[%emt 0:00:00]} 19. Rd4 {[%emt 0:00:00]} Qc8 {[%emt 0:00:00]} 20. Rad1 {[%emt 0:00:00]} Bc6 {[%emt 0:00:00]} 21. Rc4 {[%emt 0:00:00][%cal Oc4c6] [#] Threatens to win with Rxc6!} Rb7 $1 {[%emt 0:04:00]} 22. Qa6 {[%emt 0:10:30]} Rb8 {[%emt 0:00:30]} (22... Qb8 $11 {was preferrable.}) 23. Qa7 {[%emt 0:00:30] Weighted Error Value: White=0.06 (flawless) /Black=0.05 (flawless) .  Mistake:       	White=1     	Black=1      Inaccurate:     	White=1     	Black=1      OK:         	White=7     	Black=8      Best:        	---       	Black=1      Strong:       	---       	Black=2} (23. Qxc8 $1 $14 Rfxc8 24. Nd6 Bxd6 25. Rxd6) 1/2-1/2

[Event "US Masters 2024"]
[Site "Charlotte"]
[Date "2024.11.29"]
[Round "4.15"]
[White "Woodward, Andy"]
[Black "Juksta, Karolis"]
[Result "1-0"]
[ECO "E01"]
[WhiteElo "2525"]
[BlackElo "2408"]
[Annotator "TA"]
[PlyCount "75"]
[EventDate "2024.09.23"]
[EventType "swiss"]
[EventCountry "USA"]
[SourceTitle "playchess.com"]
[Source "ChessBase"]
[SourceQuality "1"]
[TimeControl "5400+30"]

{[%evp 9,75,26,31,34,37,33,42,25,25,36,41,13,21,16,12,24,19,13,21,29,19,19,26,19,19,0,0,0,0,0,0,11,0,-24,16,17,16,16,18,17,18,19,36,17,74,0,0,0,0,0,0,0,0,0,8,0,350,454,446,460,429,436,850,835,835,827,807,795]} 1. d4 {[%emt 0:05:45]} d5 {[%emt 0:04:19]} 2. c4 {[%emt 0:00:25]} e6 {[%emt 0:00:19]} 3. Nf3 {[%emt 0:00:13]} Nf6 {[%emt 0:00:17]} 4. g3 {[%emt 0:00:18]} h6 {[%emt 0:01:46]} 5. Bg2 {[%emt 0:00:54]} Bd6 {[%emt 0:00:07]} 6. O-O {[%emt 0:00:53]} O-O {[%emt 0:00:10]} 7. Nc3 {[%emt 0:00:19]} Nc6 {[%emt 0:00:15]} 8. b3 {[%emt 0:00:18] White is slightly better.} dxc4 {[%emt 0:01:03]} 9. bxc4 {[%emt 0:00:10]} e5 {[%emt 0:00:04]} 10. Nxe5 {[%emt 0:03:46]} Nxe5 {[%emt 0:00:24]} 11. c5 {[%emt 0:00:07]} Bxc5 {[%emt 0:00:10]} 12. dxe5 {[%emt 0:00:38]} Qxd1 {[%emt 0:00:08]} 13. Rxd1 {[%emt 0:00:05]} Ng4 {[%emt 0:00:06][%csl LRe5,LRf2]} 14. Ne4 {[%emt 0:00:09]} Bb6 {[%emt 0:00:06][%cal Oc8f5]} 15. a4 {[%emt 0:01:21]} Bf5 {[%emt 0:01:30][%cal Of5e4]} 16. a5 {[%emt 0:29:53]} Bxe4 {[%emt 0:01:37]} 17. axb6 {[%emt 0:00:08]} Bxg2 {[%emt 0:00:16]} 18. Kxg2 {[%emt 0:00:05]} axb6 {[%emt 0:11:21]} (18... cxb6 19. f4 h5 20. h3 $14) 19. Rxa8 {[%emt 0:06:27]} Rxa8 $11 {[%emt 0:00:06][%mdl 4096] Endgame. KRB-KRN} 20. f4 {[%emt 0:00:10]} Ra1 {[%emt 0:20:51]} 21. Rd8+ $1 {[%emt 0:00:26]} (21. h3 $2 Ne3+ 22. Bxe3 Rxd1 $19) 21... Kh7 {[%emt 0:00:05]} 22. Bd2 {[%emt 0:00:10][%mdl 1024] White has compensation.} Rd1 $1 {[%emt 0:08:29]} 23. Rd3 {[%emt 0:00:27] Dodges Ne3+. aiming for h3.} (23. h3 Ne3+ 24. Kf2 Nc4 $19) 23... h5 $1 {[%emt 0:22:08]} 24. h3 {[%emt 0:02:33]} Nh6 {[%emt 0:00:01]} 25. e4 {[%emt 0:01:10]} b5 $1 {[%emt 0:04:37][%cal Bb6b5,Bb5b4][%mdl 32] ...b4 would now be deadly.} 26. Kf3 {[%emt 0:02:24]} c5 {[%emt 0:03:01]} (26... b4 $11 {keeps the balance.} 27. Ke2 Rh1) 27. Ke2 {[%emt 0:05:15]} (27. Rd6 $1 $16) 27... Rh1 {[%emt 0:01:31]} 28. f5 {[%emt 0:01:50][%cal Bf4f5,Bf5e6,Be6e7][%mdl 32] Strongly threatening Rd7.} b4 $1 {[%emt 0:12:59] White must now prevent ...c4.} (28... Rxh3 29. Bxh6 Kxh6 30. Rd8 Rh2+ (30... Rxg3 $2 31. e6 $18) 31. Ke3 $18) 29. Rd7 {[%emt 0:15:02]} b5 {[%emt 0:02:22] And now ...b3 would win.} (29... Rxh3 $2 30. Bxh6 Kxh6 31. Rxf7 Rh2+ (31... Rxg3 $2 32. e6 $18) 32. Ke3 $18) 30. e6 {[%emt 0:04:35]} fxe6 {[%emt 0:00:38]} (30... Rxh3 $2 31. e7 (31. exf7 Nxf7 32. Rxf7 b3 $11) 31... Ng4 32. e8=Q $18 (32. e8=R Rh2+ 33. Kd1 Nf6 $15)) 31. fxe6 {[%emt 0:00:06] e7 is the strong threat.} Kg6 {[%emt 0:03:38]} (31... Rxh3 $2 32. e7 Rh2+ 33. Kd1 $18) 32. Bf4 {[%emt 0:01:30]} Kf6 {[%emt 0:01:34][%mdl 8192] Prevents Be5+.} (32... Rxh3 $2 33. Be5 Rh2+ 34. Kd1 (34. Kf3 $2 Ng4 $19) 34... Rh1+ 35. Kc2 $18) (32... Ng8 $1 $11 {and Black is okay.} 33. Be5 Nf6 (33... Rxh3 34. Rxg7+ Kh6 35. Rxg8 Rh2+ 36. Kf3 Rh1 37. e7 Rf1+ 38. Ke2)) 33. e7 $18 {[%emt 0:00:21]} Kf7 {[%emt 0:00:01] [#] Threatens to win with ...Ng8. White is clearly winning.} 34. e5 $1 {[%emt 0:00:26][%cal Be4e5,Be5e6][%mdl 32] White wants to mate with e6+!} Ke8 {[%emt 0:00:39] [#]} ({Weaker is} 34... Rxh3 35. e6+ Ke8 36. Bg5 Rh2+ 37. Kd1 (37. Kf3 Rf2+ 38. Kxf2 Ng4+ 39. Ke2 Nf6 40. Bxf6 gxf6 41. Kd1 c4) 37... Rh1+ 38. Kc2 b3+ 39. Kxb3 c4+ 40. Kb4 (40. Kc3 b4+ 41. Kxb4 Rb1+ 42. Kc5 Rb5+ 43. Kxb5 Nf7 44. Rd8+ Nxd8 45. exd8=Q#) 40... Rb1+ 41. Kc5 Nf7 42. Rd8+) 35. e6 {[%emt 0:00:07]} Rh2+ {[%emt 0:00:50]} ({Inferior is} 35... Rxh3 36. Bg5 Rh2+ 37. Kd1 (37. Kf3 Rf2+ 38. Kxf2 Ng4+ 39. Ke2 Nf6 40. Bxf6 gxf6 41. Kd2 f5) 37... Rh1+ 38. Kc2 b3+ 39. Kxb3 c4+ 40. Kb4 (40. Kc3 b4+ 41. Kxb4 Rb1+ 42. Kc5 Rb5+ 43. Kxb5 Nf7 44. Rd8+ Nxd8 45. exd8=Q#) 40... Rb1+ 41. Kc5 Nf7 42. Rd8+) (35... Nf5 $142) 36. Kf1 {[%emt 0:05:05] White threatens Bg5 and mate.} Rh1+ {[%emt 0:00:28]} 37. Kg2 {[%emt 0:00:02][%cal Of4g5] Bg5! would kill now.} Re1 {[%emt 0:00:10]} 38. Bd6 {[%emt 0:00:05] Weighted Error Value: White=0.06 (flawless) /Black=0.17 (very precise) .  Loses game:     	---       	Black=1      Mistake:       	White=1     	Black=2      Inaccurate:     	White=1     	Black=1      OK:         	White=14    	Black=16     Best:        	White=2     	Black=3      Strong:       	White=2     	Black=4} 1-0